Departmental family,Entity,Date Paid,Expense type,Expense Area,Supplier,Transaction Number,Amount,Description,Supplier Type,Expenditure Type
UK Statistics Authority,Office for National Statistics,01-Mar-18,TUPE - Fujitsu Scheme,Digital Services & Technology,Cabinet Office,30000764,"154,040.00", TUPE Pension Payments,Large,Programme
UK Statistics Authority,Office for National Statistics,05-Mar-18,Supply & Installation of Office Furniture,Data Science Campus,The Senator Group,75213,"1,177.50", Smart Working Furnishings,Large,Programme
UK Statistics Authority,Office for National Statistics,05-Mar-18,Supply & Installation of Office Furniture,Digital Services & Technology,The Senator Group,75213,"3,532.50", Smart Working Furnishings,Large,Programme
UK Statistics Authority,Office for National Statistics,05-Mar-18,Supply & Installation of Office Furniture,National Accounts & Economic Statistics,The Senator Group,75213,"113,578.74", Smart Working Furnishings,Large,Programme
UK Statistics Authority,Office for National Statistics,05-Mar-18,Supply & Installation of Office Furniture,National Accounts & Economic Statistics,The Senator Group,75213,"66,394.07", Smart Working Furnishings,Large,Programme
UK Statistics Authority,Office for National Statistics,05-Mar-18,Supply & Installation of Office Furniture,Population & Public Policy Operations,The Senator Group,75213,264, Smart Working Furnishings,Large,Programme
UK Statistics Authority,Office for National Statistics,05-Mar-18,Contractors,Digital Services & Technology,Certes Computing Ltd,75215,"22,585.68", Information Management Services,SME,Programme
UK Statistics Authority,Office for National Statistics,05-Mar-18,Contractors,Digital Services & Technology,Certes Computing Ltd,75215,"2,812.80", Information Management Services,SME,Programme
UK Statistics Authority,Office for National Statistics,05-Mar-18,Contractors,Business Services & Development,LA International,75216,"3,036.12", Information Management Services,SME,Programme
UK Statistics Authority,Office for National Statistics,05-Mar-18,Contractors,Digital Services & Technology,LA International,75216,"5,791.20", Information Management Services,SME,Programme
UK Statistics Authority,Office for National Statistics,05-Mar-18,Contractors,Digital Services & Technology,LA International,75216,"15,436.26", Information Management Services,SME,Programme
UK Statistics Authority,Office for National Statistics,05-Mar-18,Contractors,National Accounts & Economic Statistics,LA International,75216,"3,203.88", Information Management Services,SME,Programme
UK Statistics Authority,Office for National Statistics,05-Mar-18,Consultancy,Population & Public Policy Operations,Deloitte,75220,"584,748.00", Census Information Management Services,SME,Programme
UK Statistics Authority,Office for National Statistics,05-Mar-18,Consultancy,Population & Public Policy Operations,Deloitte,75221,"45,190.80", Census Information Management Services,SME,Programme
UK Statistics Authority,Office for National Statistics,05-Mar-18,Consultancy,Population & Public Policy Operations,Ernst & Young Llp,75224,"78,000.00", Census Information Management Services,Large,Programme
UK Statistics Authority,Office for National Statistics,05-Mar-18,Contractors,Communications,Parity Resources Limited,75227,"13,008.24", Information Management Services,Large,Programme
UK Statistics Authority,Office for National Statistics,05-Mar-18,Contractors,Digital Services & Technology,Parity Resources Limited,75227,"3,088.68", Information Management Services,Large,Programme
UK Statistics Authority,Office for National Statistics,05-Mar-18,Contractors,Economic Statistics Transformation,Parity Resources Limited,75227,"10,188.72", Information Management Services,Large,Programme
UK Statistics Authority,Office for National Statistics,05-Mar-18,Contractors,Population & Public Policy Operations,Parity Resources Limited,75227,"9,227.52", Information Management Services,Large,Programme
UK Statistics Authority,Office for National Statistics,05-Mar-18,Contractors,Population & Public Policy Transformation,Parity Resources Limited,75227,"2,018.52", Information Management Services,Large,Programme
UK Statistics Authority,Office for National Statistics,05-Mar-18,Short-Term Contract & Agency Staff,Business Services & Development,Parity Resources Limited,75227,"3,768.64", Information Management Services,Large,Programme
UK Statistics Authority,Office for National Statistics,05-Mar-18,Short-Term Contract & Agency Staff,"Methods, Data & Research",Parity Resources Limited,75227,956.38, Information Management Services,Large,Programme
UK Statistics Authority,Office for National Statistics,05-Mar-18,USB Headset,Digital Services & Technology,Bechtle Direct Ltd,75237,"25,542.00", Information Management Services,SME,Programme
UK Statistics Authority,Office for National Statistics,05-Mar-18,Surveys,"Methods, Data & Research",NHS Digital,75245,"57,338.40", Statistical services,Large,Programme
UK Statistics Authority,Office for National Statistics,05-Mar-18,Contractors,Digital Services & Technology,E Synergy Solutions,75248,"24,816.00", Information Management Services ,SME,Programme
UK Statistics Authority,Office for National Statistics,05-Mar-18,IT Contractual Services,Digital Services & Technology,E Synergy Solutions,75248,846, Information Management Services ,SME,Programme
UK Statistics Authority,Office for National Statistics,05-Mar-18,Oracle Fusion Cloud,Digital Services & Technology,SCC,75261,"17,824.97", Information Management Services,Large,Programme
UK Statistics Authority,Office for National Statistics,05-Mar-18,Oracle Fusion Cloud,"Finance, Audit & Business Development",SCC,75261,"18,889.49", Information Management Services,Large,Programme
UK Statistics Authority,Office for National Statistics,05-Mar-18,Telecommunications,Digital Services & Technology,BT Global Services,75262,"45,504.71", Information Management Services,Large,Programme
UK Statistics Authority,Office for National Statistics,05-Mar-18,Travel & Subsistence,"Finance, Audit & Business Development",Redfern Travel,75265,"50,773.18", Travel and Accommodation Booking Service ,SME,Programme
UK Statistics Authority,Office for National Statistics,05-Mar-18,Surveys,Economic Statistics Transformation,Equifax LTD,75270,"120,152.64", Statistical Services,Large,Programme
UK Statistics Authority,Office for National Statistics,06-Mar-18,Contractors,Digital Services & Technology,E Synergy Solutions,75271,"7,920.00", Information Management Services ,SME,Programme
UK Statistics Authority,Office for National Statistics,06-Mar-18,IT Contractual Services,Digital Services & Technology,E Synergy Solutions,75271,"14,400.00", Information Management Services ,SME,Programme
UK Statistics Authority,Office for National Statistics,06-Mar-18,IT Contractual Services,Digital Services & Technology,E Synergy Solutions,75271,"5,724.00", Information Management Services ,SME,Programme
UK Statistics Authority,Office for National Statistics,06-Mar-18,Consultancy,"Finance, Audit & Business Development",Certus Solutions Consulting Services Ltd,75272,"86,858.82", Information Management Services,SME,Programme
UK Statistics Authority,Office for National Statistics,06-Mar-18,Vouchers,Population & Public Policy Operations,Park Retail Ltd,75274,"83,234.42", Social Surveys Incentive Vouchers,Large,Programme
UK Statistics Authority,Office for National Statistics,06-Mar-18,Travel & Subsistence,"Finance, Audit & Business Development",Calder World of Travel,75283,"25,060.33", Travel & Accommodation Booking Service,SME,Programme
UK Statistics Authority,Office for National Statistics,06-Mar-18,ICT Outsourcing & Maintenance/Support,Digital Services & Technology,The Sensible Code Company,75285,"51,453.16", Information Management Services,SME,Programme
UK Statistics Authority,Office for National Statistics,06-Mar-18,ICT Outsourcing & Maintenance/Support,Digital Services & Technology,BMS (UK) Ltd,75287,"32,718.00", Information Management Services,Large,Programme
UK Statistics Authority,Office for National Statistics,06-Mar-18,IT Purchases >2K,Economic Statistics Transformation,Onalytica,75290,"33,048.00", Information Management Services,Large,Programme
UK Statistics Authority,Office for National Statistics,07-Mar-18,ICT Outsourcing & Maintenance/Support,Digital Services & Technology,RSM Partners Ltd,75302,"65,637.00", Information Management Services,SME,Programme
UK Statistics Authority,Office for National Statistics,07-Mar-18,Telecommunications,Digital Services & Technology,BT Global Services,75310,"41,504.22", Information Management Services,Large,Programme
UK Statistics Authority,Office for National Statistics,07-Mar-18,Telecommunications,Digital Services & Technology,BT Global Services,75310,"19,489.94", Information Management Services,Large,Programme
UK Statistics Authority,Office for National Statistics,07-Mar-18,Telecommunications,Public Policy Analysis,BT Global Services,75310,187.01, Information Management Services,Large,Programme
UK Statistics Authority,Office for National Statistics,07-Mar-18,Travel & Subsistence,"Finance, Audit & Business Development",Redfern Travel,75313,"53,055.19", Travel and Accommodation Booking Service ,SME,Programme
UK Statistics Authority,Office for National Statistics,07-Mar-18,Consultancy,Population & Public Policy Operations,Certes Computing Ltd,75322,"11,003.28", Information Management Services,SME,Programme
UK Statistics Authority,Office for National Statistics,07-Mar-18,Contractors,Digital Services & Technology,Certes Computing Ltd,75322,"9,712.80", Information Management Services,SME,Programme
UK Statistics Authority,Office for National Statistics,07-Mar-18,Contractors,Digital Services & Technology,Certes Computing Ltd,75322,"5,010.48", Information Management Services,SME,Programme
UK Statistics Authority,Office for National Statistics,07-Mar-18,Contractors,Economic Statistics Transformation,Certes Computing Ltd,75322,"10,663.99", Information Management Services,SME,Programme
UK Statistics Authority,Office for National Statistics,07-Mar-18,Contractors,Population & Public Policy Transformation,Certes Computing Ltd,75322,"13,083.65", Information Management Services,SME,Programme
UK Statistics Authority,Office for National Statistics,08-Mar-18,ICT Outsourcing & Maintenance/Support,Digital Services & Technology,Crown Hosting Data Centres Limited,75655,"36,514.10", Cloud Services,SME,Programme
UK Statistics Authority,Office for National Statistics,08-Mar-18,ICT Outsourcing & Maintenance/Support,Digital Services & Technology,Crown Hosting Data Centres Limited,75655,"2,931.60", Cloud Services,SME,Programme
UK Statistics Authority,Office for National Statistics,08-Mar-18,Contractors,"Methods, Data & Research",Concept Information Technology Ltd T/A Concept Resourcing,75658,"6,423.46", Information Management Services,Large,Programme
UK Statistics Authority,Office for National Statistics,08-Mar-18,Short-Term Contract & Agency Staff,"Methods, Data & Research",Concept Information Technology Ltd T/A Concept Resourcing,75658,"5,646.96", Information Management Services,Large,Programme
UK Statistics Authority,Office for National Statistics,08-Mar-18,Short-Term Contract & Agency Staff,"Methods, Data & Research",Concept Information Technology Ltd T/A Concept Resourcing,75658,"3,938.73", Information Management Services,Large,Programme
UK Statistics Authority,Office for National Statistics,08-Mar-18,Short-Term Contract & Agency Staff,"Methods, Data & Research",Concept Information Technology Ltd T/A Concept Resourcing,75658,"2,964.70", Information Management Services,Large,Programme
UK Statistics Authority,Office for National Statistics,08-Mar-18,Short-Term Contract & Agency Staff,National Accounts And Economic Statistics,Concept Information Technology Ltd T/A Concept Resourcing,75658,"2,996.91", Information Management Services,Large,Programme
UK Statistics Authority,Office for National Statistics,08-Mar-18,Short-Term Contract & Agency Staff,National Accounts And Economic Statistics,Concept Information Technology Ltd T/A Concept Resourcing,75658,"6,704.81", Information Management Services,Large,Programme
UK Statistics Authority,Office for National Statistics,08-Mar-18,Postage,Population & Public Policy Operations,UK Mail,75665,"42,937.14", Outgoing Post,Large,Programme
UK Statistics Authority,Office for National Statistics,08-Mar-18,Childcare Services,"Finance, Audit & Business Development",Computershare Voucher Services,75674,"42,204.01", Childcare Vouchers ,Large,Programme
UK Statistics Authority,Office for National Statistics,08-Mar-18,Contractors,Business Services & Development,Parity Resources Limited,75675,"13,392.72", Information Management Services,Large,Programme
UK Statistics Authority,Office for National Statistics,08-Mar-18,Contractors,Business Services & Development,Parity Resources Limited,75675,"9,612.00", Information Management Services,Large,Programme
UK Statistics Authority,Office for National Statistics,08-Mar-18,Contractors,Digital Services & Technology,Parity Resources Limited,75675,"11,534.40", Information Management Services,Large,Programme
UK Statistics Authority,Office for National Statistics,08-Mar-18,Contractors,Digital Services & Technology,Parity Resources Limited,75675,"60,744.66", Information Management Services,Large,Programme
UK Statistics Authority,Office for National Statistics,08-Mar-18,Contractors,Digital Services & Technology,Parity Resources Limited,75675,"30,355.02", Information Management Services,Large,Programme
UK Statistics Authority,Office for National Statistics,08-Mar-18,Contractors,Economic Statistics Transformation,Parity Resources Limited,75675,"11,527.20", Information Management Services,Large,Programme
UK Statistics Authority,Office for National Statistics,08-Mar-18,Contractors,Economic Statistics Transformation,Parity Resources Limited,75675,"10,252.80", Information Management Services,Large,Programme
UK Statistics Authority,Office for National Statistics,08-Mar-18,Contractors,Population & Public Policy Operations,Parity Resources Limited,75675,"1,153.44", Information Management Services,Large,Programme
UK Statistics Authority,Office for National Statistics,08-Mar-18,Contractors,Population & Public Policy Transformation,Parity Resources Limited,75675,"3,460.32", Information Management Services,Large,Programme
UK Statistics Authority,Office for National Statistics,08-Mar-18,Contractors,Population & Public Policy Transformation,Parity Resources Limited,75675,"8,650.80", Information Management Services,Large,Programme
UK Statistics Authority,Office for National Statistics,08-Mar-18,Contractors,Population & Public Policy Transformation,Parity Resources Limited,75675,"11,342.16", Information Management Services,Large,Programme
UK Statistics Authority,Office for National Statistics,08-Mar-18,Short-Term Contract & Agency Staff,Business Services & Development,Parity Resources Limited,75675,"1,933.75", Information Management Services,Large,Programme
UK Statistics Authority,Office for National Statistics,08-Mar-18,Short-Term Contract & Agency Staff,Business Services & Development,Parity Resources Limited,75675,"3,593.80", Information Management Services,Large,Programme
UK Statistics Authority,Office for National Statistics,08-Mar-18,Short-Term Contract & Agency Staff,"Methods, Data & Research",Parity Resources Limited,75675,956.38, Information Management Services,Large,Programme
UK Statistics Authority,Office for National Statistics,09-Mar-18,Telecommunications,Population & Public Policy Operations,EE Limited,75679,"36,289.81", Telecommunication Services,Large,Programme
UK Statistics Authority,Office for National Statistics,09-Mar-18,Facilities Management Contract Payments,"Finance, Audit & Business Development",Vinci Construction UK Limited,75681,"314,357.66", Facilities Management ,Large,Programme
UK Statistics Authority,Office for National Statistics,09-Mar-18,Contractors,Business Services & Development,Certeco Ltd,75701,"91,920.00", Information Management Services,Large,Programme
UK Statistics Authority,Office for National Statistics,12-Mar-18,Facilities Management Contract Payments,"Finance, Audit & Business Development",Vinci Construction UK Limited,75995,"306,684.70", Facilities Management ,Large,Programme
UK Statistics Authority,Office for National Statistics,12-Mar-18,Major Works Over 25K,Business Services & Development,Vinci Construction UK Limited,75995,"52,680.66", Facilities Management London Relocation,Large,Programme
UK Statistics Authority,Office for National Statistics,12-Mar-18,Capital Major Works > 25K,Data Science Campus,Paramount Office Interiors Ltd,76002,"20,059.20", Major Works Newport,SME,Programme
UK Statistics Authority,Office for National Statistics,12-Mar-18,Capital Minor Works < 25K,Data Science Campus,Paramount Office Interiors Ltd,76002,"11,198.40", Major Works Newport,SME,Programme
UK Statistics Authority,Office for National Statistics,12-Mar-18,Major Works Over 25K,Business Services & Development,Paramount Office Interiors Ltd,76002,"2,829.67", Major Works Newport,SME,Programme
UK Statistics Authority,Office for National Statistics,13-Mar-18,Consultancy,Digital Services & Technology,Swirrl IT Ltd,76302,"46,252.33", Statistical Services,SME,Programme
UK Statistics Authority,Office for National Statistics,13-Mar-18,Non-IT Contractual Payments,"Finance, Audit & Business Development",Royal Bank of Scotland,76308,"55,190.14", Multiple Procurement Card Purchases  ,Large,Programme
UK Statistics Authority,Office for National Statistics,13-Mar-18,Stationery,"Finance, Audit & Business Development",Royal Bank of Scotland,76308,"10,465.87", Multiple Procurement Card Purchases  Stationery,Large,Programme
UK Statistics Authority,Office for National Statistics,13-Mar-18,Capital Major Works > 25K,Business Services & Development,Hawkings Cladding Ltd,76310,"232,470.14", Newport Major Works,SME,Programme
UK Statistics Authority,Office for National Statistics,13-Mar-18,Major Works Over 25K,Business Services & Development,Hawkings Cladding Ltd,76310,"41,024.14", Newport Major Works,SME,Programme
UK Statistics Authority,Office for National Statistics,13-Mar-18,ICT Outsourcing & Maintenance/Support,Digital Services & Technology,CA Ltd,76314,"132,806.40", Information Management Services,SME,Programme
UK Statistics Authority,Office for National Statistics,14-Mar-18,Surveys,National Accounts & Economic Statistics,Kantar Public,76323,"1,710.00", Information Management Services,SME,Programme
UK Statistics Authority,Office for National Statistics,14-Mar-18,Surveys,Public Policy Analysis,Kantar Public,76323,"385,416.00", Information Management Services,SME,Programme
UK Statistics Authority,Office for National Statistics,14-Mar-18,Surveys,Public Policy Analysis,Kantar Public,76323,"18,960.00", Information Management Services,SME,Programme
UK Statistics Authority,Office for National Statistics,14-Mar-18,Consultancy,Digital Services & Technology,Swirrl IT Ltd,76324,"63,932.87", Statistical Services,SME,Programme
UK Statistics Authority,Office for National Statistics,14-Mar-18,ICT Outsourcing & Maintenance/Support,Digital Services & Technology,RSM Partners Ltd,76326,"43,500.00", Information Management Services,SME,Programme
UK Statistics Authority,Office for National Statistics,14-Mar-18,2018 Cloudera Subscription,Digital Services & Technology,SCC,76329,"924,700.78", Information Management Services,Large,Programme
UK Statistics Authority,Office for National Statistics,14-Mar-18,Travel & Subsistence,"Finance, Audit & Business Development",Redfern Travel,76333,"70,396.71", Travel and Accommodation Booking Service ,SME,Programme
UK Statistics Authority,Office for National Statistics,14-Mar-18,Consultancy,Population & Public Policy Transformation,University of Salford,76334,"113,443.20", Statistical Services,Large,Programme
UK Statistics Authority,Office for National Statistics,14-Mar-18,ICT Outsourcing & Maintenance/Support,Digital Services & Technology,Actian Europe Limited,76339,"681,771.67", Information Management Services,SME,Programme
UK Statistics Authority,Office for National Statistics,14-Mar-18,Software Pool 4 Year,Digital Services & Technology,Specialist Computer Centres,76341,"323,266.03", Information Management Services,Large,Programme
UK Statistics Authority,Office for National Statistics,15-Mar-18,Surveys,Public Policy Analysis,Kantar Public,76672,"131,730.00", Information Management Services,SME,Programme
UK Statistics Authority,Office for National Statistics,15-Mar-18,ICT Outsourcing & Maintenance/Support,Digital Services & Technology,Crown Hosting Data Centres Limited,76675,"13,945.60", Cloud Services,SME,Programme
UK Statistics Authority,Office for National Statistics,15-Mar-18,ICT Outsourcing & Maintenance/Support,Digital Services & Technology,Crown Hosting Data Centres Limited,76675,"16,119.18", Cloud Services,SME,Programme
UK Statistics Authority,Office for National Statistics,15-Mar-18,Facilities Management Contract Payments,"Finance, Audit & Business Development",Vinci Construction UK Limited,76676,"200,892.84", Facilities Management ,Large,Programme
UK Statistics Authority,Office for National Statistics,15-Mar-18,IT Contractual Services,Digital Services & Technology,Methods Digital Ltd,76691,"348,075.00", Information Management Services,Large,Programme
UK Statistics Authority,Office for National Statistics,15-Mar-18,ICT Outsourcing & Maintenance/Support,Digital Services & Technology,Amazon Web Services Inc,30000781,"35,670.96", Web Services,Large,Programme
UK Statistics Authority,Office for National Statistics,16-Mar-18,IT Purchases >2K,Digital Services & Technology,Stone Computers,77050,"131,620.13", Computer Hardware,Large,Programme
UK Statistics Authority,Office for National Statistics,16-Mar-18,Surveys,Economic Statistics Transformation,Ipsos MORI,77051,"46,350.00", Statistical Services,Large,Programme
UK Statistics Authority,Office for National Statistics,16-Mar-18,IT Contractual Services,Digital Services & Technology,Methods Digital Ltd,77054,"151,200.00", Information Management Services,Large,Programme
UK Statistics Authority,Office for National Statistics,16-Mar-18,Consultancy,Population & Public Policy Operations,Deloitte,77057,"584,748.00", Census Information Management Services,SME,Programme
UK Statistics Authority,Office for National Statistics,16-Mar-18,IT Contractual Services,Digital Services & Technology,QA Ltd,77058,"27,300.00", Information Management Services,Large,Programme
UK Statistics Authority,Office for National Statistics,16-Mar-18,ICT Outsourcing & Maintenance/Support,Digital Services & Technology,Computacenter (UK) Limited,77062,"29,709.96", Software Licenses,Large,Programme
UK Statistics Authority,Office for National Statistics,16-Mar-18,IT Purchases >2K,Digital Services & Technology,Computacenter (UK) Limited,77062,"194,661.48", Software Licenses,Large,Programme
UK Statistics Authority,Office for National Statistics,16-Mar-18,IT Purchases >2K,Digital Services & Technology,Computacenter (UK) Limited,77062,"258,204.00", Software Licenses,Large,Programme
UK Statistics Authority,Office for National Statistics,16-Mar-18,Contractors,Communications,Parity Resources Limited,77064,"8,971.21", Information Management Services,Large,Programme
UK Statistics Authority,Office for National Statistics,16-Mar-18,Contractors,Digital Services & Technology,Parity Resources Limited,77064,"1,807.08", Information Management Services,Large,Programme
UK Statistics Authority,Office for National Statistics,16-Mar-18,Contractors,Digital Services & Technology,Parity Resources Limited,77064,"3,197.70", Information Management Services,Large,Programme
UK Statistics Authority,Office for National Statistics,16-Mar-18,Contractors,Economic Statistics Transformation,Parity Resources Limited,77064,137.88, Information Management Services,Large,Programme
UK Statistics Authority,Office for National Statistics,16-Mar-18,Contractors,Population & Public Policy Transformation,Parity Resources Limited,77064,"10,573.20", Information Management Services,Large,Programme
UK Statistics Authority,Office for National Statistics,16-Mar-18,ICT Outsourcing & Maintenance/Support,Communications,Parity Resources Limited,77064,"2,178.72", Information Management Services,Large,Programme
UK Statistics Authority,Office for National Statistics,16-Mar-18,Short-Term Contract & Agency Staff,Business Services & Development,Parity Resources Limited,77064,"2,703.70", Information Management Services,Large,Programme
UK Statistics Authority,Office for National Statistics,16-Mar-18,Short-Term Contract & Agency Staff,"Methods, Data & Research",Parity Resources Limited,77064,956.38, Information Management Services,Large,Programme
UK Statistics Authority,Office for National Statistics,16-Mar-18,Short-Term Contract & Agency Staff,Population & Public Policy Transformation,Parity Resources Limited,77064,"12,175.20", Information Management Services,Large,Programme
UK Statistics Authority,Office for National Statistics,16-Mar-18,Short-Term Contract & Agency Staff,Population & Public Policy Transformation,Parity Resources Limited,77064,"4,567.88", Information Management Services,Large,Programme
UK Statistics Authority,Office for National Statistics,16-Mar-18,Consultancy,Business Services & Development,Certeco Ltd,77067,"199,920.00", Information Management Services,Large,Programme
UK Statistics Authority,Office for National Statistics,16-Mar-18,ICT Outsourcing & Maintenance/Support,Business Services & Development,People Asset Management Ltd,77068,"37,586.74", Information Management Services,SME,Programme
UK Statistics Authority,Office for National Statistics,16-Mar-18,Surveys,Public Policy Analysis,Kantar Public,77069,"396,524.40", Information Management Services,SME,Programme
UK Statistics Authority,Office for National Statistics,16-Mar-18,ICT Outsourcing & Maintenance/Support,Digital Services & Technology,SCC,77073,"5,813.28", Information Management Services,Large,Programme
UK Statistics Authority,Office for National Statistics,16-Mar-18,IT Purchases >2K,Digital Services & Technology,SCC,77073,"359,587.11", Information Management Services,Large,Programme
UK Statistics Authority,Office for National Statistics,16-Mar-18,Telecommunications,Digital Services & Technology,SCC,77073,"17,536.07", Information Management Services,Large,Programme
UK Statistics Authority,Office for National Statistics,16-Mar-18,Newport Electricity,Business Services & Development,EDF Energy,30000786,"27,245.40", Electricity Newport,Large,Programme
UK Statistics Authority,Office for National Statistics,16-Mar-18,Titchfield Electricity,Business Services & Development,EDF Energy,30000787,"28,209.73", Electricity Titchfield,Large,Programme
UK Statistics Authority,Office for National Statistics,19-Mar-18,ICT Outsourcing & Maintenance/Support,Digital Services & Technology,BT Global Services,77081,"1,866.00", Information Management Services,Large,Programme
UK Statistics Authority,Office for National Statistics,19-Mar-18,Telecommunications,Digital Services & Technology,BT Global Services,77081,"22,632.00", Information Management Services,Large,Programme
UK Statistics Authority,Office for National Statistics,19-Mar-18,Telecommunications,Population & Public Policy Operations,BT Global Services,77081,"4,123.37", Information Management Services,Large,Programme
UK Statistics Authority,Office for National Statistics,19-Mar-18,Postage,Population & Public Policy Operations,FP Direct ,77094,"200,000.00", Statistical Services,Large,Programme
UK Statistics Authority,Office for National Statistics,20-Mar-18,Contractors,Digital Services & Technology,E Synergy Solutions,77450,"121,944.00", Information Management Services ,SME,Programme
UK Statistics Authority,Office for National Statistics,20-Mar-18,Contractors,Digital Services & Technology,E Synergy Solutions,77450,"14,580.00", Information Management Services ,SME,Programme
UK Statistics Authority,Office for National Statistics,20-Mar-18,IT Contractual Services,Digital Services & Technology,E Synergy Solutions,77450,"13,440.00", Information Management Services ,SME,Programme
UK Statistics Authority,Office for National Statistics,20-Mar-18,IT Contractual Services,Digital Services & Technology,E Synergy Solutions,77450,"15,600.00", Information Management Services ,SME,Programme
UK Statistics Authority,Office for National Statistics,20-Mar-18,IT Contractual Services,Digital Services & Technology,E Synergy Solutions,77450,"104,748.00", Information Management Services ,SME,Programme
UK Statistics Authority,Office for National Statistics,20-Mar-18,Oracle Cloud Licences,"Finance, Audit & Business Development",SCC,77451,"66,171.92", Information Management Services,Large,Programme
UK Statistics Authority,Office for National Statistics,20-Mar-18,IT Purchases >2K,Digital Services & Technology,BT Global Services,77453,"14,818.80", Information Management Services,Large,Programme
UK Statistics Authority,Office for National Statistics,20-Mar-18,Telecommunications,Digital Services & Technology,BT Global Services,77453,"23,546.20", Information Management Services,Large,Programme
UK Statistics Authority,Office for National Statistics,20-Mar-18,Telecommunications,Digital Services & Technology,BT Global Services,77453,"82,696.00", Information Management Services,Large,Programme
UK Statistics Authority,Office for National Statistics,20-Mar-18,Travel & Subsistence,"Finance, Audit & Business Development",Calder World of Travel,77456,"27,038.31", Travel & Accommodation Booking Service,SME,Programme
UK Statistics Authority,Office for National Statistics,20-Mar-18,IT Contractual Services,Digital Services & Technology,The Sensible Code Company,77457,"75,120.84", Information Management Services,SME,Programme
UK Statistics Authority,Office for National Statistics,20-Mar-18,Training & Development - Government Economic Service,Population & Public Policy Operations,HM Treasury Group,77459,"6,585.27", Fast Stream Recruitment Services,Large,Programme
UK Statistics Authority,Office for National Statistics,20-Mar-18,Training & Development - Government Economic Service,Population & Public Policy Transformation,HM Treasury Group,77459,"6,585.27", Fast Stream Recruitment Services,Large,Programme
UK Statistics Authority,Office for National Statistics,20-Mar-18,Training & Development - Government Economic Service,Public Policy Analysis,HM Treasury Group,77459,"13,170.52", Fast Stream Recruitment Services,Large,Programme
UK Statistics Authority,Office for National Statistics,20-Mar-18,Training & Development - Professional Membership Fees,Economic Statistics Transformation,HM Treasury Group,77459,"259,416.62", Fast Stream Recruitment Services,Large,Programme
UK Statistics Authority,Office for National Statistics,20-Mar-18,Training & Development - Seminar & Conference Fees,Population & Public Policy Operations,HM Treasury Group,77459,763.51, Fast Stream Recruitment Services,Large,Programme
UK Statistics Authority,Office for National Statistics,20-Mar-18,ICT Costs Software,Digital Services & Technology,Computacenter (UK) Limited,77460,"444,056.76", Software Licenses,Large,Programme
UK Statistics Authority,Office for National Statistics,20-Mar-18,Consultancy,Business Services & Development,Certeco Ltd,77463,"199,920.00", Fast Stream Recruitment Services,Large,Programme
UK Statistics Authority,Office for National Statistics,21-Mar-18,Travel & Subsistence,"Finance, Audit & Business Development",Redfern Travel,77467,"56,159.65", Travel and Accommodation Booking Service ,SME,Programme
UK Statistics Authority,Office for National Statistics,21-Mar-18,Market and Opinion Research Specialist,Population & Public Policy Transformation,Ipsos MORI,77469,"148,246.32", Statistical Services,Large,Programme
UK Statistics Authority,Office for National Statistics,21-Mar-18,Contractors,Economic Statistics Transformation,Mango Solutions,77480,"12,285.00", Information Management Services,SME,Programme
UK Statistics Authority,Office for National Statistics,21-Mar-18,Contractors,Economic Statistics Transformation,Mango Solutions,77480,"7,020.00", Information Management Services,SME,Programme
UK Statistics Authority,Office for National Statistics,21-Mar-18,Contractors,Economic Statistics Transformation,Mango Solutions,77480,"14,625.00", Information Management Services,SME,Programme
UK Statistics Authority,Office for National Statistics,21-Mar-18,IT Contractual Services,Digital Services & Technology,Mastek,77481,"22,800.00", Information Management Services,Large,Programme
UK Statistics Authority,Office for National Statistics,21-Mar-18,IT Contractual Services,Digital Services & Technology,Mastek,77481,"18,240.00", Information Management Services,Large,Programme
UK Statistics Authority,Office for National Statistics,22-Mar-18,Contractors,Communications,Parity Resources Limited,77800,"2,970.00", Information Management Services,Large,Programme
UK Statistics Authority,Office for National Statistics,22-Mar-18,Contractors,Digital Services & Technology,Parity Resources Limited,77800,"5,011.08", Information Management Services,Large,Programme
UK Statistics Authority,Office for National Statistics,22-Mar-18,Contractors,Economic Statistics Transformation,Parity Resources Limited,77800,"7,689.60", Information Management Services,Large,Programme
UK Statistics Authority,Office for National Statistics,22-Mar-18,Short-Term Contract & Agency Staff,Business Services & Development,Parity Resources Limited,77800,"3,605.80", Information Management Services,Large,Programme
UK Statistics Authority,Office for National Statistics,22-Mar-18,Short-Term Contract & Agency Staff,Economic Statistics Transformation,Parity Resources Limited,77800,"3,251.68", Information Management Services,Large,Programme
UK Statistics Authority,Office for National Statistics,22-Mar-18,Short-Term Contract & Agency Staff,"Methods, Data & Research",Parity Resources Limited,77800,956.38, Information Management Services,Large,Programme
UK Statistics Authority,Office for National Statistics,22-Mar-18,Short-Term Contract & Agency Staff,Population & Public Policy Transformation,Parity Resources Limited,77800,"3,825.50", Information Management Services,Large,Programme
UK Statistics Authority,Office for National Statistics,23-Mar-18,Training & Development,Business Services & Development,Coleg Gwent,77815,"28,228.00", Training Provision,Large,Programme
UK Statistics Authority,Office for National Statistics,23-Mar-18,Titchfield Business Rates,Business Services & Development,Fareham Borough Council,77829,"396,865.00", Titchfield Rates,Large,Programme
UK Statistics Authority,Office for National Statistics,23-Mar-18,Surveys,Population & Public Policy Operations,Department for Work and Pensions,77837,"36,000.00", Statistical Services,Large,Programme
UK Statistics Authority,Office for National Statistics,26-Mar-18,Facilities Management Contract Payments,"Finance, Audit & Business Development",Vinci Construction UK Limited,78159,"301,039.27", Facilities Management ,Large,Programme
UK Statistics Authority,Office for National Statistics,26-Mar-18,IT Purchases > 25K,Business Services & Development,Vinci Construction UK Limited,78159,"68,848.81", Facilities Management ,Large,Programme
UK Statistics Authority,Office for National Statistics,26-Mar-18,Major Works Over 25K,Business Services & Development,Vinci Construction UK Limited,78159,"6,498.47", Facilities Management ,Large,Programme
UK Statistics Authority,Office for National Statistics,26-Mar-18,Major Works Over 25K,Business Services & Development,Vinci Construction UK Limited,78159,"13,506.73", Facilities Management ,Large,Programme
UK Statistics Authority,Office for National Statistics,27-Mar-18,Training & Development,Communications,GovDelivery,78503,"57,571.20", Cloud Services,SME,Programme
UK Statistics Authority,Office for National Statistics,27-Mar-18,Non IT Contractual Payments,Population & Public Policy Operations,Gowling WLG (UK) LLP,78506,"116,290.92", Census Informtion Management Services,Large,Programme
UK Statistics Authority,Office for National Statistics,27-Mar-18,Contractors,Business Services & Development,Certeco Ltd,78507,"67,080.00", Information Management Services,Large,Programme
UK Statistics Authority,Office for National Statistics,27-Mar-18,Consultancy,"Finance, Audit & Business Development",Certus Solutions Consulting Services Ltd,78512,"86,625.00", Information Management Services,SME,Programme
UK Statistics Authority,Office for National Statistics,27-Mar-18,Non IT Contractual Payments,"Methods, Data & Research",NatCen Social Research,78513,"35,655.60", Statistical Services,Large,Programme
UK Statistics Authority,Office for National Statistics,27-Mar-18,Non IT Contractual Payments,Population & Public Policy Operations,NatCen Social Research,78513,"121,863.99", Statistical Services,Large,Programme
UK Statistics Authority,Office for National Statistics,27-Mar-18,Surveys,Population & Public Policy Operations,NatCen Social Research,78513,"5,119.20", Statistical Services,Large,Programme
UK Statistics Authority,Office for National Statistics,27-Mar-18,Major Works Over 25K,Business Services & Development,Vinci Construction UK Limited,78514,"40,212.00", Facilities Management ,Large,Programme
UK Statistics Authority,Office for National Statistics,27-Mar-18,Major Works Over 25K,Business Services & Development,Vinci Construction UK Limited,78514,"5,100.00", Facilities Management London Relocation,Large,Programme
UK Statistics Authority,Office for National Statistics,27-Mar-18,Major Works Over 25K,Business Services & Development,Vinci Construction UK Limited,78514,"6,345.60", London Minor Works,Large,Programme
UK Statistics Authority,Office for National Statistics,27-Mar-18,Major Works Over 25K,Business Services & Development,Vinci Construction UK Limited,78514,"1,740.00", Newport Minor Works,Large,Programme
UK Statistics Authority,Office for National Statistics,27-Mar-18,Major Works Over 25K,Business Services & Development,Vinci Construction UK Limited,78514,"14,143.20", Newport Minor Works,Large,Programme
UK Statistics Authority,Office for National Statistics,27-Mar-18,IT Purchases > 25K,Digital Services & Technology,SCC,78518,"41,120.40", Information Management Services,Large,Programme
UK Statistics Authority,Office for National Statistics,27-Mar-18,IT Purchases > 25K,Digital Services & Technology,SCC,78518,"11,941.87", Information Management Services,Large,Programme
UK Statistics Authority,Office for National Statistics,27-Mar-18,Telecommunications,Digital Services & Technology,SCC,78518,"62,173.33", Information Management Services,Large,Programme
UK Statistics Authority,Office for National Statistics,27-Mar-18,Surveys,"Methods, Data & Research",University of Southampton,78519,"53,445.80", Statistical Services,SME,Programme
UK Statistics Authority,Office for National Statistics,27-Mar-18,Telecommunications,Digital Services & Technology,BT Global Services,78520,"39,016.02", Information Management Services,Large,Programme
UK Statistics Authority,Office for National Statistics,27-Mar-18,Telecommunications,Digital Services & Technology,BT Global Services,78521,"7,748.46", Information Management Services,Large,Programme
UK Statistics Authority,Office for National Statistics,27-Mar-18,Telecommunications,Digital Services & Technology,BT Global Services,78521,"41,357.45", Information Management Services,Large,Programme
UK Statistics Authority,Office for National Statistics,27-Mar-18,Capital Major Works >25K,Data Science Campus,The Senator Group,78524,"13,689.56", Smart Working Furnishings,Large,Programme
UK Statistics Authority,Office for National Statistics,27-Mar-18,Supply & Installation of Office Furniture,National Accounts & Economic Statistics,The Senator Group,78524,"77,403.35", Smart Working Furnishings,Large,Programme
UK Statistics Authority,Office for National Statistics,27-Mar-18,Supply & Installation of Office Furniture,Population & Public Policy Transformation,The Senator Group,78524,"1,255.20", Smart Working Furnishings,Large,Programme
UK Statistics Authority,Office for National Statistics,27-Mar-18,ICT Outsourcing & Maintenance/Support,Digital Services & Technology,QA Ltd,78529,"39,804.00", Information Management Services,Large,Programme
UK Statistics Authority,Office for National Statistics,27-Mar-18,IT Contractual Services,Digital Services & Technology,QA Ltd,78529,"1,007,728.50", Information Management Services,Large,Programme
UK Statistics Authority,Office for National Statistics,27-Mar-18,Major Works Over 25K,Business Services & Development,Paramount Office Interiors Ltd,78530,"42,167.86", Major Works Newport,SME,Programme
UK Statistics Authority,Office for National Statistics,28-Mar-18,Titchfield Car Park Rent,Business Services & Development,Eaton Aerospace Limited,30000797,"26,599.20", Titchfield Rent,Large,Programme
UK Statistics Authority,Office for National Statistics,28-Mar-18,ICT Outsourcing & Maintenance/Support,Digital Services & Technology,Insight Direct,30000798,"458,539.32", Information Management Services,Large,Programme
UK Statistics Authority,Office for National Statistics,29-Mar-18,Drummond Gate Refund,Business Services & Development,DTZ,30000811,"158,031.00",  Drummond Gate Sub-tenant Rent Refund,Large,Programme
UK Statistics Authority,Office for National Statistics,29-Mar-18,Capital Major Works >25K,Business Services & Development,Hawkings Cladding Ltd,30000812,"298,307.12", Newport Major Works,SME,Programme
UK Statistics Authority,Office for National Statistics,29-Mar-18,Major Works Over 25K,Business Services & Development,Hawkings Cladding Ltd,30000812,"52,642.44", Newport Major Works,SME,Programme
UK Statistics Authority,Office for National Statistics,29-Mar-18,Capital Major Works >25K,Business Services & Development,Paramount Office Interiors Ltd,30000813,"18,645.60", Minor Works Newport,SME,Programme
UK Statistics Authority,Office for National Statistics,29-Mar-18,Major Works Over 25K,Business Services & Development,Paramount Office Interiors Ltd,30000813,"171,182.20", Minor Works Newport,SME,Programme
Grand Total,,,,,,,,,,
